bitfinex-derivatives/quotes_ETHF0:USTF0_20241105
["timestamp","ask_amount","ask_price","bid_price","bid_amount"]
[1730826891288,1.1732,2474.1,2473.8,3.2078]
[1730826891482,1.1732,2474.1,2473.9,0.40428]
[1730826891789,41.9732,2474.1,2473.8,3.2078]
[1730826891986,41.9732,2474.1,2473.9,0.40427]
[1730826892184,40.8,2474.1,2473.9,1.1491]
[1730826892485,40.8,2474.1,2473.9,1.55337]
[1730826893280,40.8,2474.1,2473.9,1.1491]
[1730826893682,40.8,2474.1,2473.9,1.55336]
[1730826893879,40.8,2474.1,2474.0,0.40426]
[1730826894878,1.1358,2474.8,2474.0,4.0416]
[1730826895084,10.113,2477.1,2474.7,3.15866466]
[1730826895085,0.22141622,2475.6,2474.7,3.15866466]
[1730826895287,3.2078,2475.8,2475.0,3.2078]
[1730826895288,1.1156,2475.5,2475.0,3.2078]
[1730826895486,1.18571824,2475.5,2475.0,3.2078]
[1730826895686,0.40406,2475.3,2475.0,3.2078]
[1730826896188,1.18571824,2475.5,2475.0,3.2078]
[1730826896793,0.40408,2475.1,2475.0,3.2078]
[1730826896991,11.5921829,2475.5,2474.5,3.2078]
[1730826897286,0.40412,2474.9,2474.5,3.2078]
[1730826897493,2.373,2475.0,2474.5,3.61197]
[1730826897494,2.77711,2475.0,2474.5,3.61197]
[1730826897881,1.183,2475.0,2474.8,3.2078]
[1730826898088,0.40407,2475.2,2474.8,3.2078]
[1730826898386,1.19,2475.4,2474.8,3.2078]
[1730826898387,4.3234,2475.5,2474.8,4.2974]
[1730826898592,4.3234,2475.5,2474.8,4.70152]
[1730826898789,0.40406,2475.2,2474.8,4.2974]
[1730826899087,4.3234,2475.5,2474.8,4.2974]
[1730826899088,7.48206466,2475.5,2474.8,4.2974]
[1730826899395,1.1208,2475.1,2474.8,4.2974]
[1730826899687,0.40411,2474.9,2474.8,3.2078]
[1730826899890,1.0841,2475.0,2474.8,3.2078]
[1730826900387,40.8,2474.9,2474.8,3.2078]
[1730826901792,41.20411,2474.9,2474.8,3.2078]
[1730826901996,40.8,2474.9,2474.8,3.2078]
[1730826902288,41.20411,2474.9,2474.8,3.2078]
[1730826902588,45.24491,2474.9,2474.8,3.2078]
[1730826902888,48.0486,2474.9,2474.3,1.0896]
[1730826903091,1.1721,2474.8,2474.1,3.2078]
[1730826903282,1.0886,2474.7,2474.1,3.2078]
[1730826903483,0.40423,2474.2,2474.1,3.2078]
[1730826903691,3.2078,2474.6,2474.1,3.2078]
[1730826903884,3.2078,2474.6,2473.8,4.26066466]
[1730826903885,0.40423,2474.2,2473.8,6.36646466]
[1730826904090,0.4042,2474.4,2473.9,0.40427]
[1730826904393,3.15866466,2474.3,2473.8,3.2078]
[1730826904584,0.40428,2473.9,2473.8,3.2078]
[1730826905980,4.0424,2473.9,2473.4,3.2078]
[1730826906186,0.40431,2473.8,2473.4,3.2078]
[1730826906787,0.40431,2473.8,2473.4,3.61216]
[1730826907187,0.40431,2473.7,2473.4,3.2078]
[1730826907383,0.40434,2473.6,2473.4,3.2078]
[1730826907591,0.40433,2473.6,2473.4,3.2078]
[1730826907789,7.48146466,2474.1,2473.4,3.2078]
[1730826908296,1.115,2474.1,2473.4,3.2078]
[1730826908485,0.40431,2473.8,2473.4,3.2078]
[1730826908684,0.40432,2473.7,2473.4,3.2078]
[1730826908897,1.1893,2473.7,2473.5,0.40434]
[1730826909190,1.1893,2473.7,2473.4,3.61215]
[1730826909389,1.1893,2473.7,2473.4,3.2078]
[1730826909586,0.40433,2473.6,2473.4,3.2078]
[1730826909786,1.59362,2473.7,2473.4,3.2078]
[1730826910195,0.40434,2473.6,2473.4,3.2078]
[1730826910487,1.1893,2473.7,2473.3,1.162]
[1730826910693,0.40439,2473.3,2473.1,4.3822]
[1730826910882,0.40439,2473.2,2473.1,3.2078]
[1730826911893,4.0432,2473.2,2472.5,1.129]
[1730826912089,0.40446,2472.8,2472.5,1.129]
[1730826912286,1.115,2473.1,2472.5,1.129]
[1730826912596,0.4045,2472.5,2472.4,3.2078]
[1730826913797,0.40453,2472.4,2472.0,3.2078]
[1730826914098,0.40453,2472.4,2472.0,3.61238]
[1730826914286,3.15866466,2472.8,2472.0,3.61238]
[1730826914490,3.15866466,2472.8,2472.0,3.2078]
[1730826914891,0.40454,2472.3,2472.0,3.2078]
[1730826915294,3.15866466,2472.8,2472.0,3.2078]
[1730826915798,0.40456,2472.2,2471.8,1.54332]
[1730826915993,0.40452,2472.4,2471.8,1.1387]
[1730826916193,0.40457,2472.1,2471.8,1.1387]
[1730826917005,0.40457,2472.1,2471.8,1.54332]
[1730826917203,0.40456,2472.2,2471.8,1.54332]
[1730826917394,1.1589,2472.4,2471.8,1.1387]
[1730826917595,0.4046,2471.9,2471.8,1.1387]
[1730826917897,0.40461,2471.9,2471.7,3.2078]
[1730826918297,0.40462,2471.8,2471.7,3.2078]
[1730826918597,40.8,2471.8,2471.7,3.2078]
[1730826918793,1.1589,2472.4,2471.7,3.2078]
[1730826918995,0.40458,2472.1,2471.7,3.61243]
[1730826919295,0.40458,2472.1,2471.7,3.2078]
[1730826919296,40.8,2472.0,2471.7,3.2078]
[1730826919598,0.40451,2472.5,2471.9,0.4046]
[1730826919803,0.4045,2472.6,2472.2,0.40455]
[1730826920005,0.4045,2472.6,2472.2,1.52985]
[1730826920298,43.1384,2472.9,2472.2,2.1999]
[1730826920506,3.2078,2472.8,2472.2,2.1999]
[1730826920805,43.1384,2472.9,2472.2,2.1999]
[1730826921104,0.40448,2472.7,2472.3,0.40453]
[1730826921294,0.40448,2472.7,2472.2,2.1999]
[1730826921295,43.1384,2472.9,2472.4,3.2078]
[1730826921495,43.1384,2472.9,2472.2,2.1999]
[1730826921496,1.1217,2473.4,2472.7,3.2078]
[1730826921803,0.4044,2473.2,2472.8,1.1253]
[1730826921998,0.40442,2473.1,2472.8,1.1253]
[1730826922297,44.0078,2473.5,2472.8,1.1253]
[1730826922499,0.40437,2473.4,2472.9,0.40443]
[1730826922999,44.0078,2473.5,2472.8,2.2808]
[1730826923205,44.0078,2473.5,2472.8,2.68525]
[1730826923397,0.40438,2473.3,2472.8,2.68525]
[1730826923798,44.0078,2473.5,2472.8,2.2808]
[1730826923995,0.40441,2473.1,2472.8,2.2808]
[1730826924404,44.0078,2473.5,2472.8,2.68524]
[1730826924606,44.0078,2473.5,2472.8,2.2808]
[1730826924607,0.4044,2473.2,2472.8,2.2808]
[1730826924907,0.4044,2473.2,2472.8,2.68525]
[1730826924908,0.40439,2473.2,2472.8,2.68525]
[1730826925802,40.8,2473.5,2473.2,0.40438]
[1730826926002,40.8,2473.5,2473.3,3.2078]
[1730826926208,0.40436,2473.4,2473.3,3.2078]
[1730826926604,4.44756,2473.4,2473.3,3.2078]
[1730826926804,0.40438,2473.3,2472.9,1.57623]
[1730826927001,40.8,2473.5,2473.1,3.2078]
[1730826927310,40.8,2473.5,2473.4,3.2078]
[1730826928009,41.20434,2473.5,2473.4,3.2078]
[1730826928310,0.4044,2473.2,2473.1,3.2078]
[1730826928814,0.40437,2473.4,2473.1,3.2078]
[1730826929304,40.8,2473.5,2473.1,3.2078]
[1730826929501,0.40437,2473.4,2473.1,3.2078]
[1730826929802,0.40438,2473.3,2473.1,3.2078]
[1730826930304,40.8,2473.5,2473.1,3.2078]
[1730826930503,40.8,2473.5,2473.4,3.2078]
[1730826930701,40.8,2473.5,2473.1,3.2078]
[1730826930898,0.40437,2473.4,2473.1,3.2078]
[1730826931197,40.8,2473.5,2473.1,3.2078]
[1730826931398,40.8,2473.5,2473.2,1.1136]
[1730826931605,41.20436,2473.5,2473.2,1.1136]
[1730826931795,40.8,2473.5,2473.2,1.1136]
[1730826932001,41.20435,2473.5,2473.2,1.1136]
[1730826932201,40.8,2473.5,2473.1,3.2078]
[1730826932403,41.20435,2473.5,2473.1,3.6122]
[1730826932706,41.20435,2473.5,2473.1,3.61221]
[1730826932895,40.8,2473.5,2473.1,3.2078]
[1730826933101,0.40437,2473.4,2473.1,3.2078]
[1730826933508,0.40437,2473.4,2472.8,2.2808]
[1730826933509,1.1547,2473.4,2472.8,4.3331]
[1730826934105,1.085,2473.3,2472.8,4.3331]
[1730826934500,1.085,2473.3,2473.1,3.2078]
[1730826934706,1.48938,2473.3,2473.1,3.2078]
[1730826936415,0.40439,2473.2,2473.1,3.2078]
[1730826936607,1.48938,2473.3,2473.1,3.2078]
[1730826937010,40.8,2473.5,2473.1,3.2078]
[1730826937309,3.88407988,2474.1,2473.4,3.2078]
[1730826937310,2.3059,2474.0,2473.4,3.2078]
[1730826937507,0.40431,2473.7,2473.5,1.1309]
[1730826937709,40.8,2473.6,2473.5,1.1309]
[1730826937910,2.3059,2474.0,2473.5,1.1309]
[1730826938211,7.09187988,2474.5,2473.7,3.2078]
[1730826938419,1.1441,2474.3,2473.7,3.2078]
[1730826938711,1.1441,2474.3,2473.7,3.6121]
[1730826938712,0.40425,2474.1,2473.7,3.6121]
[1730826938918,0.40426,2474.0,2473.7,3.2078]
[1730826939105,1.1441,2474.3,2473.7,3.2078]
[1730826939305,43.0359,2474.4,2474.0,3.2078]
[1730826939306,40.8,2474.4,2474.0,3.2078]
[1730826939519,0.40422,2474.3,2474.0,3.2078]
[1730826939806,0.40424,2474.2,2474.0,3.2078]
[1730826940314,0.40423,2474.2,2474.1,3.2078]
[1730826941211,0.40422,2474.3,2474.1,3.2078]
[1730826941418,40.8,2474.4,2474.1,3.2078]
[1730826941615,40.8,2474.4,2474.2,1.1357]
[1730826941916,40.8,2474.4,2474.2,2.65172]
[1730826942118,40.8,2474.4,2474.2,2.2475]
[1730826942312,40.8,2474.4,2474.2,2.65172]
[1730826943213,40.8,2474.4,2474.3,4.44581]
[1730826944014,1.077,2475.0,2474.3,4.0416]
[1730826944219,0.40407,2475.2,2474.8,3.61193]
[1730826944417,1.0753,2475.3,2474.8,3.61193]
[1730826944418,0.40409,2475.1,2474.8,3.2078]
[1730826944618,40.8,2475.0,2474.8,4.76163]
[1730826944918,1.47936,2475.3,2474.9,0.4041]
[1730826945119,1.0753,2475.3,2474.8,4.3575]
[1730826945319,40.8,2475.2,2475.0,0.40409]
[1730826945512,40.8,2475.2,2474.8,4.3575]
[1730826945712,40.8,2475.2,2475.0,0.40409]
[1730826946015,40.8,2475.2,2475.1,3.61188]
[1730826946419,40.8,2475.2,2475.1,7.2478]
[1730826946619,40.8,2475.2,2475.1,3.2078]
[1730826947615,0.40402,2475.5,2475.1,3.2078]
[1730826947821,0.40403,2475.4,2475.1,3.2078]
[1730826948015,40.8,2475.3,2475.1,3.2078]
[1730826949323,41.20405,2475.3,2475.1,3.2078]
[1730826949825,0.40408,2475.1,2474.9,1.1335]
[1730826950114,0.40408,2475.1,2474.4,1.1377]
[1730826950115,40.8,2475.3,2474.5,4.3056]
[1730826950316,3.2078,2475.1,2474.2,3.2078]
[1730826950618,0.40417,2474.6,2474.2,3.2078]
[1730826950813,3.2078,2475.1,2474.2,3.2078]
[1730826950814,3.88407988,2474.9,2474.2,3.2078]
[1730826951021,0.40415,2474.7,2474.2,3.61202]
[1730826951221,0.40415,2474.7,2474.2,3.2078]
[1730826951413,0.40415,2474.7,2474.3,0.40421]
[1730826951613,3.88407988,2474.9,2474.2,3.2078]
[1730826951813,0.40417,2474.6,2474.2,3.2078]
[1730826952014,3.88407988,2474.9,2474.2,3.2078]
[1730826952213,0.40418,2474.5,2474.2,3.2078]
[1730826952619,0.40415,2474.7,2474.2,3.2078]
[1730826952820,3.2078,2475.1,2474.2,3.61202]
[1730826953022,0.40417,2474.6,2474.2,3.2078]
[1730826953316,0.40416,2474.7,2474.2,3.61202]
[1730826953818,3.2078,2475.1,2474.2,3.61202]
[1730826954016,0.0701348,2475.0,2474.2,3.2078]
[1730826954221,3.88407988,2474.5,2473.9,3.2078]
[1730826954425,0.40426,2474.0,2473.9,3.2078]
[1730826954722,0.40423,2474.2,2473.9,3.2078]
[1730826954911,40.8,2474.0,2473.9,3.2078]
[1730826955422,40.8,2474.0,2473.6,3.61212]
[1730826956019,40.8,2474.0,2473.6,3.2078]
[1730826956221,40.8,2474.0,2473.8,0.40429]
[1730826956520,40.8,2474.0,2473.9,3.2078]
[1730826956721,41.20426,2474.0,2473.9,3.2078]
[1730826957118,0.40429,2473.8,2473.5,4.3493]
[1730826957325,11.51632,2473.7,2473.5,3.2078]
[1730826958524,11.112,2473.7,2473.5,3.61213]
[1730826958824,11.112,2473.7,2473.5,4.74773]
[1730826959225,11.112,2473.7,2473.6,0.40432]
[1730826960119,11.112,2473.7,2473.5,4.74774]
[1730826960318,11.51632,2473.7,2473.5,4.3434]
[1730826960518,11.112,2473.7,2473.5,4.74773]
[1730826960714,11.112,2473.7,2473.5,4.3434]
[1730826960919,11.51632,2473.7,2473.5,4.3434]
[1730826961421,11.112,2473.7,2473.6,0.40432]
[1730826962529,11.112,2473.7,2473.5,4.74773]
[1730826962718,40.8,2474.0,2473.5,4.3434]
[1730826962918,0.40432,2473.7,2473.5,4.3434]
[1730826963125,40.8,2474.0,2473.5,4.3434]
[1730826963319,40.8,2474.0,2473.5,3.2078]
[1730826963529,0.40432,2473.6,2473.5,3.2078]
[1730826964035,4.44672,2473.6,2473.5,3.2078]
[1730826966129,4.44672,2473.6,2473.2,3.2078]
[1730826966130,7.92647988,2473.6,2473.2,3.2078]
[1730826966330,0.40437,2473.3,2473.2,3.2078]
[1730826966631,0.40442,2473.0,2472.9,3.2078]
[1730826966824,0.40442,2473.0,2472.7,1.1392]
[1730826966825,0.40444,2473.0,2472.7,1.1392]
[1730826967022,2.2259,2473.2,2472.7,1.1392]
[1730826967730,2.2259,2473.2,2472.6,0.01024926]
[1730826967731,0.40447,2472.7,2472.6,0.01024926]
[1730826968438,40.8,2473.1,2472.6,0.01024926]
[1730826968733,0.40446,2472.8,2472.6,0.01024926]
[1730826968932,0.40447,2472.7,2472.6,0.01024926]
[1730826970126,0.40451,2472.5,2472.1,3.61236]
[1730826970328,3.2078,2472.8,2471.8,5.4633]
[1730826970329,0.40456,2472.2,2471.8,5.4633]
[1730826972843,0.40451,2472.5,2472.0,0.40458]
[1730826973437,1.1017,2472.6,2471.9,3.88407988]
[1730826973735,0.4045,2472.6,2472.1,0.40456]
[1730826974440,0.4045,2472.6,2471.9,0.4046]
[1730826974441,0.40453,2472.4,2471.9,0.4046]
[1730826974640,3.2078,2472.6,2471.8,5.4755]
[1730826974835,3.2078,2472.6,2472.1,0.40456]
[1730826975136,0.40453,2472.4,2471.9,0.40459]
[1730826975345,0.40454,2472.3,2471.8,5.4755]
[1730826975543,0.40454,2472.3,2471.9,0.4046]
[1730826975739,0.40455,2472.3,2471.8,5.88011]
[1730826975943,0.40456,2472.2,2471.8,5.88011]
[1730826976132,3.2078,2472.6,2471.8,5.4755]
[1730826976437,0.40457,2472.2,2471.8,5.4755]
[1730826977238,0.40452,2472.4,2472.0,0.40459]
[1730826977431,0.4045,2472.5,2472.0,1.50328]
[1730826977941,40.8,2472.4,2472.1,0.40457]
[1730826978139,40.8,2472.4,2472.0,1.0987]
[1730826978640,40.8,2472.4,2471.8,5.4755]
[1730826978831,40.8,2472.4,2471.8,2.2677]
[1730826978832,3.2078,2472.1,2471.8,2.2677]
[1730826979034,0.4046,2471.9,2471.8,2.2677]
[1730826979342,3.2078,2472.1,2471.5,3.2078]
[1730826979538,3.2078,2472.1,2471.5,4.3316]
[1730826979932,3.2078,2472.1,2471.9,0.40459]
[1730826980143,44.0078,2472.4,2472.0,1.1145]
[1730826980437,44.0078,2472.4,2472.2,0.40455]
[1730826980833,0.40451,2472.5,2472.2,0.40455]
[1730826981035,2.2736,2472.7,2472.1,2.57926]
[1730826981241,0.40451,2472.5,2472.1,2.57926]
[1730826981436,3.2078,2472.8,2472.1,5.3825]
[1730826981739,3.2078,2472.8,2472.2,0.40454]
[1730826982045,40.8,2472.7,2472.1,5.3825]
[1730826982344,0.40449,2472.6,2472.2,0.40454]
[1730826982543,41.20448,2472.7,2472.3,0.40453]
[1730826982845,40.8,2472.7,2472.4,0.40451]
[1730826983942,40.8,2472.7,2472.5,1.5297]
[1730826984144,40.8,2472.7,2472.6,0.40449]
[1730826984336,4.7268,2473.2,2472.8,0.40445]
[1730826984641,4.3224,2473.2,2472.5,1.1252]
[1730826984840,40.8,2473.1,2472.8,0.40445]
[1730826985237,40.8,2473.1,2472.5,1.1252]
[1730826985439,40.8,2473.1,2472.8,0.40444]
[1730826985640,40.8,2473.1,2472.9,1.0711]
[1730826985841,40.8,2473.1,2472.9,1.47553]
[1730826986247,40.8,2473.1,2472.9,1.0711]
[1730826986443,40.8,2473.1,2472.7,3.2078]
[1730826986643,0.40444,2473.0,2472.7,3.61227]
[1730826986946,0.40444,2473.0,2472.7,3.2078]
[1730826987840,40.8,2473.1,2472.7,3.61227]
[1730826988050,41.20442,2473.1,2472.7,3.61227]
[1730826988548,41.20442,2473.1,2472.6,3.2078]
[1730826989050,40.8,2473.1,2472.6,3.2078]
[1730826989248,40.8,2473.1,2473.0,0.40442]
[1730826989545,40.8,2473.1,2472.9,0.40443]
[1730826989846,40.8,2473.1,2473.0,1.1666]
[1730826990041,40.8,2473.1,2472.7,1.1441]
[1730826990042,41.20441,2473.1,2472.8,0.40445]
[1730826990249,40.8,2473.1,2472.7,2.3107]
[1730826990546,41.20441,2473.1,2472.7,2.71516]
[1730826990947,41.20441,2473.1,2472.7,2.3107]
[1730826991244,0.40441,2473.1,2472.5,1.1252]
[1730826991446,9.92065,2471.6,2470.6,3.6126]
[1730826991643,3.88407988,2471.2,2470.7,0.25963187]
[1730826991954,3.88407988,2470.7,2470.6,4.3744]
[1730826992445,3.88407988,2470.7,2470.6,3.2078]
[1730826992747,3.88407988,2470.7,2470.2,3.2078]
[1730826996641,3.88407988,2470.7,2470.2,3.61268]
[1730826997264,4.28888988,2470.7,2470.2,3.2078]
[1730826997471,4.28888988,2470.7,2470.5,1.05008421]
[1730826997773,0.40482,2470.6,2470.5,1.05008421]
[1730826998452,0.40483,2470.5,2470.4,1.05008421]
[1730826998654,0.40483,2470.5,2470.1,1.113]
[1730826998655,3.88407988,2470.5,2470.3,1.05008421]
[1730826998853,3.61265,2470.4,2470.3,1.05008421]
[1730827000044,3.61265,2470.4,2470.1,1.113]
[1730827000239,3.2078,2470.4,2470.1,1.113]
[1730827000445,0.40488,2470.2,2470.1,1.113]
[1730827000642,3.88407988,2470.2,2470.1,1.113]
[1730827001337,4.28896988,2470.2,2470.0,1.05008421]
[1730827001754,3.88407988,2470.2,2470.0,1.05008421]
[1730827001948,3.88407988,2470.2,2469.9,0.40493]
[1730827002348,0.40491,2470.1,2469.8,3.2078]
[1730827002952,3.88407988,2469.9,2469.8,3.2078]
[1730827003260,0.40497,2469.7,2469.1,6.41857184]
[1730827003552,3.88407988,2469.4,2469.2,0.40503]
[1730827003951,3.88407988,2469.3,2469.1,6.82362184]
[1730827004153,3.88407988,2469.3,2469.0,1.1437]
[1730827004344,41.8644,2470.0,2469.2,0.40504]
[1730827004345,3.88407988,2469.6,2469.2,0.40504]
[1730827004955,3.88407988,2469.6,2469.3,0.40503]
[1730827005952,3.88407988,2469.4,2469.2,0.40504]
[1730827006153,4.28909988,2469.4,2469.0,1.1437]
[1730827006349,3.88407988,2469.1,2469.0,1.1437]
[1730827006548,3.88407988,2469.1,2468.7,4.5668]
[1730827006751,3.88407988,2469.1,2468.9,0.40508]
[1730827007151,3.88407988,2469.1,2468.7,4.5668]
[1730827007347,3.88407988,2469.1,2469.0,0.40508]
[1730827007861,3.88407988,2469.1,2469.0,4.45548]
[1730827008055,3.88407988,2469.1,2468.9,0.40508]
[1730827008359,3.88407988,2469.3,2469.2,0.40503]
[1730827008858,4.28906988,2469.6,2468.7,5.57962]
[1730827009459,4.28906988,2469.6,2469.2,0.40504]
[1730827009654,3.2078,2469.7,2469.5,0.405]
[1730827009959,3.2078,2469.7,2469.0,3.2078]
[1730827010160,3.2078,2469.7,2469.1,2.1898]
[1730827010358,3.2078,2469.7,2469.4,0.405]
[1730827010655,3.88407988,2469.6,2469.1,2.1898]
[1730827010863,3.88407988,2469.6,2469.4,0.40501]
[1730827011051,3.88407988,2469.6,2469.3,0.40501]
[1730827011252,3.88407988,2469.6,2469.4,0.40501]
[1730827011454,3.88407988,2469.6,2469.4,0.405]
[1730827012557,3.88407988,2469.6,2469.5,0.405]
[1730827014857,3.2078,2469.7,2469.6,0.40498]
[1730827015057,3.88407988,2469.9,2469.3,3.2078]
[1730827015561,3.88407988,2469.9,2469.7,0.40496]
[1730827015756,3.88407988,2469.9,2469.3,3.2078]
[1730827015963,3.88407988,2469.9,2469.7,0.40496]
[1730827016556,3.88407988,2469.9,2469.3,3.2078]
[1730827016866,3.88407988,2469.9,2469.8,0.40495]
[1730827018660,3.88407988,2469.9,2469.7,0.40496]
[1730827018967,3.88407988,2469.9,2469.6,0.40497]
[1730827019163,4.28900988,2469.9,2469.6,0.40497]
[1730827019461,3.88407988,2469.7,2469.3,3.2078]
[1730827019654,4.28904988,2469.7,2469.4,0.40501]
[1730827019860,0.40498,2469.6,2469.3,3.61282]
[1730827020063,3.88407988,2469.7,2469.3,3.61282]
[1730827020259,4.28904988,2469.7,2469.4,0.405]
[1730827020665,7.49684988,2469.7,2469.4,0.405]
[1730827020861,7.49684988,2469.7,2469.2,0.40505]
[1730827020862,0.40498,2469.6,2469.2,0.40505]
[1730827021057,0.40498,2469.6,2469.4,0.40501]
[1730827021252,7.49684988,2469.7,2469.5,0.40499]
[1730827021758,7.49684988,2469.7,2469.1,2.1898]
[1730827021759,7.09187988,2469.7,2469.1,2.1898]
[1730827022064,7.49684988,2469.7,2469.4,0.405]
[1730827022263,7.49684988,2469.7,2469.1,2.1898]
[1730827022558,0.40498,2469.6,2469.4,0.405]
[1730827022957,7.09187988,2469.7,2469.1,2.1898]
[1730827023162,3.88407988,2469.3,2469.2,0.40504]
[1730827023356,4.28911988,2469.3,2469.0,3.61287]
[1730827023555,41.20505,2469.2,2469.0,0.40507]
[1730827023768,3.88407988,2469.1,2469.0,0.40507]
[1730827023968,3.88407988,2469.1,2468.9,0.40508]
[1730827024152,3.88407988,2469.1,2468.8,1.357]
[1730827024356,3.88407988,2469.1,2468.9,0.40508]
[1730827025060,4.28914988,2469.1,2468.8,0.4051]
[1730827025253,3.88407988,2469.1,2468.8,0.4051]
[1730827025453,4.28914988,2469.1,2468.8,0.4051]
[1730827025865,3.88407988,2469.1,2468.7,3.2078]
[1730827026068,3.88407988,2469.1,2469.0,0.40508]
[1730827026264,3.88407988,2469.4,2469.3,0.40503]
[1730827030168,40.8,2469.6,2469.5,0.405]
[1730827030364,1.0925,2469.9,2469.8,0.40495]
[1730827030871,8.16167988,2470.0,2469.4,2.1991]
[1730827031065,4.95387988,2470.0,2469.9,0.40493]
[1730827031570,45.75387988,2470.0,2469.9,0.40493]
[1730827031869,40.8,2470.0,2469.9,0.40493]
[1730827032167,3.88407988,2470.0,2469.6,3.2078]
[1730827032476,3.88407988,2470.0,2469.8,0.40495]
[1730827032660,0.40494,2469.9,2469.6,3.61277]
[1730827033065,3.88407988,2470.0,2469.6,3.2078]
[1730827033373,3.88407988,2470.0,2469.9,0.40493]
[1730827033573,3.88407988,2470.0,2469.6,3.2078]
[1730827033770,4.28899988,2470.0,2469.7,0.40496]
[1730827033971,3.88407988,2470.0,2469.8,0.40495]
[1730827034575,4.28899988,2470.0,2469.7,0.40495]
[1730827035167,3.88407988,2470.0,2469.6,3.2078]
[1730827035471,3.88407988,2470.0,2469.8,0.40495]
[1730827035868,4.28898988,2470.0,2469.8,0.40495]
[1730827036471,4.28898988,2470.0,2469.6,3.2078]
[1730827036667,3.88407988,2470.0,2469.7,0.40496]
[1730827036875,3.88407988,2470.0,2469.6,3.2078]
[1730827037069,0.40494,2469.9,2469.7,0.40496]
[1730827037275,0.40494,2469.9,2469.8,0.54648639]
[1730827037572,4.28900988,2470.0,2469.8,0.54648639]
[1730827037765,0.40493,2469.9,2469.7,0.40496]
[1730827037968,4.28900988,2470.0,2469.7,0.40496]
[1730827038168,0.40494,2469.9,2469.7,0.40495]
[1730827038369,0.40494,2469.9,2469.4,2.1991]
[1730827038370,3.88407988,2470.0,2469.8,0.95143961]
[1730827038564,3.88407988,2470.0,2469.8,0.40494]
[1730827038767,3.88407988,2470.0,2469.4,2.1991]
[1730827039070,3.88407988,2470.0,2469.9,0.40493]
[1730827039272,3.15945096,2470.1,2470.0,0.40491]
[1730827039575,3.15945096,2470.1,2470.0,0.95161543]
[1730827040679,3.15945096,2470.1,2470.0,0.40491]
[1730827041275,45.09349581,2470.2,2470.0,0.40491]
[1730827041471,45.09349581,2470.2,2469.9,0.40492]
[1730827041472,0.4049,2470.1,2469.9,0.40492]
[1730827041973,45.09349581,2470.2,2469.9,0.40492]
[1730827042174,0.4049,2470.1,2469.9,0.40492]
[1730827042671,0.4049,2470.1,2469.8,0.40494]
[1730827042877,0.40493,2470.0,2469.7,0.40495]
[1730827043068,0.40493,2470.0,2469.5,1.355]
[1730827043069,0.40493,2470.0,2469.8,0.95234142]
[1730827043268,0.40493,2470.0,2469.8,0.40494]
[1730827044174,0.40493,2470.0,2469.5,1.355]
[1730827044175,40.8,2470.2,2469.9,0.5526204]
[1730827044479,3.2078,2470.3,2470.2,0.40488]
[1730827044773,3.2078,2470.3,2470.2,0.9575004]
[1730827045279,3.2078,2470.3,2470.2,0.40488]
[1730827046179,7.09640581,2470.3,2470.2,0.40488]
[1730827046372,7.09640581,2470.3,2470.1,0.40489]
[1730827046573,0.40491,2470.1,2469.8,0.40494]
[1730827046872,3.61274,2469.9,2469.6,2.62097]
[1730827047079,3.61273,2469.9,2469.6,1.1197]
[1730827047379,4.2811,2469.9,2469.6,1.1197]
[1730827047584,4.2811,2469.9,2469.3,4.3041]
[1730827047783,4.68604,2469.9,2469.5,0.405]
[1730827048076,4.68604,2469.9,2469.6,0.95752592]
[1730827048280,4.68604,2469.9,2469.6,0.40497]
[1730827049075,4.2811,2469.9,2469.3,4.3041]
[1730827049276,4.2811,2469.9,2469.7,0.40496]
[1730827049478,8.3299,2469.9,2469.3,4.3041]
[1730827049679,8.3299,2469.9,2469.4,0.40501]
[1730827049680,3.88860581,2469.6,2469.4,0.40501]
[1730827050080,3.2078,2469.9,2469.6,0.40497]
[1730827050274,3.2078,2469.9,2469.7,0.40496]
[1730827050473,3.61274,2469.9,2469.6,0.40498]
[1730827051084,3.61274,2469.9,2469.5,0.40498]
[1730827051286,3.2078,2469.9,2469.5,0.40498]
[1730827051481,0.40495,2469.8,2469.5,0.40498]
[1730827051689,1.57255,2469.8,2469.5,0.40499]
[1730827052184,1.1676,2469.8,2469.3,3.2078]
[1730827052381,7.09640581,2469.6,2468.9,1.1396]
[1730827052577,4.29364581,2469.3,2468.9,1.54468]
[1730827052780,41.20505,2469.2,2468.9,1.1396]
[1730827052980,42.37265,2469.2,2468.9,1.1396]
[1730827053187,41.9676,2469.2,2468.7,1.0825]
[1730827053679,42.37265,2469.2,2468.7,1.0825]
[1730827053988,42.37265,2469.2,2468.8,0.40511]
[1730827054180,42.37265,2469.2,2468.7,1.0825]
[1730827054181,41.9676,2469.2,2468.7,1.0825]
[1730827054387,42.37265,2469.2,2468.8,0.40511]
[1730827054775,42.37265,2469.2,2468.9,0.40509]
[1730827054983,42.37265,2469.2,2468.8,0.40511]
[1730827055487,42.37265,2469.2,2468.7,1.0825]
[1730827055683,42.37265,2469.2,2468.9,0.40509]
[1730827055988,0.40506,2469.1,2468.8,0.40511]
[1730827056184,41.9676,2469.2,2468.8,0.40511]
[1730827056377,41.9676,2469.2,2468.7,1.0825]
[1730827056378,0.40507,2469.1,2468.7,1.0825]
[1730827056584,42.37265,2469.2,2468.7,1.0825]
[1730827056787,41.9676,2469.2,2468.9,0.40508]
[1730827056988,41.9676,2469.2,2469.0,0.40507]
[1730827057785,41.9676,2469.2,2468.9,0.40509]